Cogmind - Beta 16 @@@ ROGUE MODE // 2025.11.01 @ 18:43:00 Player: Not_Jesus8 Result: Destroyed by G-73 Enforcer with Heavy Laser Performance ------------- Evolutions (9) 4500 Regions Visited (13) 2600 Robots Destroyed (59) 295 Value Destroyed (1133) 1133 Prototype IDs (26) 520 Alien Tech Used (0) 0 Bonus (1434) 1434 TOTAL SCORE: 10482 Bonus ------- Pacifist 634 Entered DSFs 500 Aligned with FarCom 300 Cogmind --------- Core Integrity 0/1600 Matter 300/300 Energy 100/100 System Corruption 27% Temperature Cool (0) Movement Core (50) Location -1/Access Parts ------- > --- POWER (1) -------- (None) > --- PROPULSION (8) --- (None) > --- UTILITY (14) ----- Advanced Signal Interpreter Authchip [Propulsion] > --- WEAPON (2) ------- (None) > --- INVENTORY (5) ---- Advanced Terrain Scan Processor Peak State ------------ > --- POWER ------------ Light Ion Engine > --- PROPULSION ------- Xenon Bombardment Thruster Field Propulsion Array Field Propulsion Array > --- UTILITY ---------- Advanced Signal Interpreter Advanced Signal Interpreter Improved Terrain Scanner Core Analyzer Core Analyzer Nanoactuators Improved Hacking Suite Improved Hacking Suite Improved System Shield Improved System Shield Authchip [Propulsion] > --- WEAPON ----------- Plasma Sword Plasma Sword > --- INVENTORY -------- Improved Fusion Compressor Advanced Terrain Scan Processor PSU Rigger Plasma Sword Plasma Sword [Rating: 102] Favorites ----------- Power Light Ion Engine Engine Light Ion Engine Power Core Neutrino Core Propulsion Wheel Leg Flexi-carbon Leg Wheel Wheel Hover Unit Linear Gravjet Flight Unit Field Propulsion Array Utility Melee Analysis Suite Device Structural Scanner Storage Medium Storage Unit Processor Melee Analysis Suite Hackware System Shield Protection Light Armor Plating Weapon Plasma Sword Ballistic Gun Shotgun Special Weapon Mining Laser Impact Weapon Heavy Hammer Slashing Weapon Plasma Sword Piercing Weapon Enhanced Force Lance Special Melee Weapon Improved Datajack Build | -11 -10 -10 -10 -9 -8 -7 -6 -5 -4 -4 -3 -2 -1 ------- Run | Yrd Mat Min Exi Min Mat Fac Fac Fac Fac DSF Res Res Acc Slots Evolved 18 | . . . . . 4 2 2 2 2 . 2 2 2 Power . | . . . . . . . . . . . . . . Propulsion 6 | . . . . . 2 . . . 2 . . . 2 Utility 12 | . . . . . 2 2 2 2 . . 2 2 . Weapon . | . . . . . . . . . . . . . . Parts Attached 85 | 4 3 1 . 1 5 14 6 12 . 12 10 7 10 Power 8 | 1 . . . . . 1 1 1 . 1 1 2 . Engine 6 | 1 . . . . . 1 1 1 . . . 2 . Core 2 | . . . . . . . . . . 1 1 . . Reactor . | . . . . . . . . . . . . . . Propulsion 30 | 2 . . . 1 1 5 . 6 . 8 3 4 . Treads . | . . . . . . . . . . . . . . Leg 3 | . . . . . . . . . . . 3 . . Wheel 15 | 2 . . . 1 . 5 . 6 . . . 1 . Hover 9 | . . . . . 1 . . . . 8 . . . Flight 3 | . . . . . . . . . . . . 3 . Utility 33 | 1 2 1 . . 2 6 5 3 . 2 4 1 6 Device 8 | . . . . . . 3 . 2 . . 1 1 1 Storage 5 | 1 1 . . . 1 2 . . . . . . . Processor 11 | . . 1 . . . 1 5 . . . 3 . 1 Hackware 8 | . . . . . 1 . . 1 . 2 . . 4 Protection 1 | . 1 . . . . . . . . . . . . Artifact . | . . . . . . . . . . . . . . Weapon 14 | . 1 . . . 2 2 . 2 . 1 2 . 4 Energy Gun . | . . . . . . . . . . . . . . Energy Cannon . | . . . . . . . . . . . . . . Ballistic Gun 3 | . . . . . . 1 . . . . . . 2 Ballistic Cannon . | . . . . . . . . . . . . . . Launcher . | . . . . . . . . . . . . . . Special Weapon 3 | . 1 . . . 1 . . 1 . . . . . Impact Weapon 2 | . . . . . . 1 . 1 . . . . . Slashing Weapon 4 | . . . . . . . . . . . 2 . 2 Piercing Weapon 1 | . . . . . . . . . . 1 . . . Special Melee Weapon 1 | . . . . . 1 . . . . . . . . Unidentified Prototypes 3 | . . . . . 1 . . . . . 1 . 1 Corrupted Parts 3 | . . . . . . 1 . 2 . . . . . System Corruption 19 | . . . . . . 9 . 10 . . . . . Parts Lost 47 | . . 4 . . . 2 1 10 . 4 3 1 22 Power 6 | . . 1 . . . . . 2 . 1 . 1 1 Propulsion 17 | . . 2 . . . 1 . 5 . 3 2 . 4 Utility 16 | . . 1 . . . . 1 2 . . 1 . 11 Weapon 8 | . . . . . . 1 . 1 . . . . 6 Highest Loss Streak 17 | . . 3 . . . 1 1 7 . 4 3 1 17 To Critical Strikes . | . . . . . . . . . . . . . . Average Backups 5 | . 1 3 7 5 4 4 6 7 4 4 5 4 4 Power 1 | . . . 2 2 1 1 1 3 1 1 1 1 . Propulsion . | . . . . . . . 1 . . . . . . Utility 2 | . 1 2 4 2 2 2 2 2 2 2 1 1 1 Weapon 1 | . . 1 1 1 . . 1 . . . 1 2 1 Tool/Special . | . . . . . . . . . . . . . . Unused Backups 20 | . . . 2 1 1 5 . 4 . 1 4 1 1 Power 10 | . . . 1 . 1 3 . 4 . . . 1 . Propulsion 1 | . . . . . . . . . . . 1 . . Utility 6 | . . . 1 1 . 2 . . . . 1 . 1 Weapon 2 | . . . . . . . . . . . 2 . . Tool/Special 1 | . . . . . . . . . . 1 . . . Average Slot Usage (%) 60 | . 69 65 28 11 35 60 70 88 . 20 31 46 58 Engine 4 | . 14 11 . . . 5 3 3 . . . 2 3 Wheel 13 | . 28 26 . 10 1 20 26 21 . . . . . Flight 2 | . . . . . . . . . . . . 3 11 Device 4 | . . . . . . 4 4 8 . . 2 5 7 Storage 4 | . 14 14 14 . 7 5 6 4 . . . . . Processor 13 | . . 3 14 . . 6 14 29 . . 4 13 14 Hackware 6 | . . . . . 3 7 6 10 . 1 4 4 14 Protection 1 | . 12 9 . . . . . . . . . . . Impact Weapon 2 | . . . . . . 6 6 4 . . . . . Slashing Weapon 2 | . . . . . . . . . . . 6 8 7 Peak Build Rating 102 | 4 6 8 7 6 16 24 39 53 2 61 55 76 102 Average Rating 37 | 3 4 5 6 3 13 14 22 45 2 32 37 63 88 On Entrance 19 | . 4 5 5 6 4 15 16 39 2 2 37 55 76 Avg Prop Armor Cover (%) 17 | . . . . . . . . . . 19 20 8 18 Naked Turns 99 | . . . . 57 1 . . 26 11 4 . . . Heaviest Build 26 | 10 14 13 5 5 3 26 23 25 . 22 8 11 11 Greatest Support 68 | 26 26 26 3 12 12 46 46 52 3 36 40 68 36 Greatest Overweight (x) 3 | . . 1 1 1 . 1 . 1 . 2 2 3 3 Average Overweight (x) . | . . . 1 . . . . . . . . . . Largest Inventory Capacity 25 | 8 25 8 8 8 5 15 10 10 5 5 5 5 5 Average Capacity 7 | 6 8 8 8 5 5 8 10 9 5 5 5 5 5 Most Carried 10 | . 3 5 8 6 5 5 8 10 4 5 5 5 5 Average Carried 5 | . 1 3 7 5 4 4 6 7 4 4 4 4 4 Final Capacity 10 | 8 8 8 8 5 5 10 10 5 5 5 5 5 5 Final Carried 8 | . 3 5 7 5 5 3 8 4 4 5 5 4 1 Class Distribution -------------------- 34% | Mutant 18% | Scavenger-Mutant 18% | Hacker-Assassin 7% | Hacker-Gladiator 6% | Assassin 4% | Hacker-Mutant 4% | Hacker-Scout 4% | Gladiator Dominant Class ---------------- Mutant | -10/Materials Mutant | -10/Mines Mutant | -10/Exiles Mutant | -9/Mines Mutant | -8/Materials Scavenger-Mutant | -7/Factory Scavenger-Mutant | -6/Factory Hacker-Assassin | -5/Factory Mutant | -4/Factory Mutant | -4/DSF Assassin | -3/Research Scout | -2/Research Hacker-Gladiator | -1/Access Resources | -11 -10 -10 -10 -9 -8 -7 -6 -5 -4 -4 -3 -2 -1 ----------- Run | Yrd Mat Min Exi Min Mat Fac Fac Fac Fac DSF Res Res Acc Matter Collected 1372 | 240 30 90 . 24 239 148 72 174 . 4 70 46 235 Remotely . | . . . . . . . . . . . . . . Salvage Created 1949 | . . . . . . 666 188 613 . . 70 86 326 Parts 74 | . . . . . . 29 3 11 . . 3 7 21 Haulers Intercepted 2 | . . . . . . 1 . 1 . . . . . Recyclers Shooed . | . . . . . . . . . . . . . . Parts Field Recycled . | . . . . . . . . . . . . . . Retrieved Matter . | . . . . . . . . . . . . . . Parts Self-Destructed . | . . . . . . . . . . . . . . Prevented . | . . . . . . . . . . . . . . Parts Restored . | . . . . . . . . . . . . . . Kills | -11 -10 -10 -10 -9 -8 -7 -6 -5 -4 -4 -3 -2 -1 ------- Run | Yrd Mat Min Exi Min Mat Fac Fac Fac Fac DSF Res Res Acc Combat Hostiles Destroyed 10 | . . . . . . 4 . 3 . . 1 1 1 Melee 5 | . . . . . . 1 . 1 . . 1 1 1 Guns 1 | . . . . . . 1 . . . . . . . AOE 3 | . . . . . . 2 . 1 . . . . . Classes Destroyed 13 | . . . . . . 10 . 2 . . 1 . . Worker 19 | . . . . . . 4 1 8 . . . 2 4 Builder 10 | . . . . . . 1 2 6 . . . . 1 Tunneler 6 | . . . . . . 3 1 1 . . . . 1 Hauler 2 | . . . . . . 1 . 1 . . . . . Recycler 5 | . . . . . . 3 1 . . . . . 1 Mechanic 2 | . . . . . . 1 . 1 . . . . . Operator 3 | . . . . . . . . 1 . . . . 2 Watcher 2 | . . . . . . 1 . 1 . . . . . Swarmer 3 | . . . . . . 1 . . . . . 1 1 Grunt 1 | . . . . . . . . . . . 1 . . Duelist 2 | . . . . . . 2 . . . . . . . Hunter 1 | . . . . . . . . 1 . . . . . Programmer 3 | . . . . . . 1 . 2 . . . . . Best Kill Streak 7 | . . . . . . 6 2 7 . . 1 2 2 Combat Bots Only 3 | . . . . . . 3 . 2 . . 1 1 1 Max Kills in Single Turn 2 | . . . . . . 1 1 2 . . 1 1 1 Gunslinging . | . . . . . . . . . . . . . . Exploded 1 | . . . . . . 1 . 1 . . . . . Melee 1 | . . . . . . 1 . 1 . . 1 1 1 Uniques/NPCs Destroyed . | . . . . . . . . . . . . . . Combat | -11 -10 -10 -10 -9 -8 -7 -6 -5 -4 -4 -3 -2 -1 -------- Run | Yrd Mat Min Exi Min Mat Fac Fac Fac Fac DSF Res Res Acc Hostile Shots Fired 377 | . 18 42 . 8 6 26 . 69 . 18 14 36 140 Missed 117 | . 4 9 . 6 5 11 . 18 . 8 4 13 39 Hits 260 | . 14 33 . 2 1 15 . 51 . 10 10 23 101 Melee 3 | . . . . . . 1 . . . . . . 2 Projectile 257 | . 14 33 . 2 1 14 . 51 . 10 10 23 99 AOE 1 | . . . . . . . . . . . . . 1 Critical Strikes 18 | . 1 1 . . . . . 4 . . . . 12 Part Disruptions 3 | . . . . . . 1 . . . . . . 2 Damage Taken 5778 | . 194 335 . 21 15 365 60 1134 . 422 192 479 2561 Core 2877 | . 69 147 . 21 15 60 20 555 . 97 115 176 1602 Absorbed by Shields . | . . . . . . . . . . . . . . Core Remaining (%) 78 | 100 . . . 5 97 91 97 44 . 91 91 87 . Volleys Fired 11 | . . . . . . 6 . 1 . . . . 4 Largest 1 | . . . . . . 1 . 1 . . . . 1 Hottest 30 | . . . . . . 23 . 5 . . . . 30 Shots Fired 10 | . . . . . . 6 . 1 . . . . 3 Gun 9 | . . . . . . 6 . . . . . . 3 Cannon . | . . . . . . . . . . . . . . Launcher . | . . . . . . . . . . . . . . Special 1 | . . . . . . . . 1 . . . . . Kinetic 9 | . . . . . . 6 . . . . . . 3 Thermal . | . . . . . . . . . . . . . . Explosive . | . . . . . . . . . . . . . . Electromagnetic . | . . . . . . . . . . . . . . Robot Hit Streak 3 | . . . . . . 3 . 2 . . . . 1 Robot Miss Streak 2 | . . . . . . 2 . . . . . . 2 Penetration Max . | . . . . . . . . . . . . . . Secondary Targets . | . . . . . . . . . . . . . . Shots Hit Robots 82 | . . . . . . 20 5 26 . . 4 6 21 Core Hits 40 | . . 2 . . . 19 1 5 . . 2 3 8 Critical Kills 3 | . . . . . . 2 . 1 . . . . . Critical Parts Destroyed 9 | . . . . . . 3 1 5 . . . . . Critical Strikes 15 | . . . . . . 5 1 6 . . . . 3 Smash 12 | . . . . . . 5 1 6 . . . . . Sever 3 | . . . . . . . . . . . . . 3 Melee Attacks 146 | . . . . . . 22 7 34 . . 10 17 56 Impact 63 | . . . . . . 22 7 34 . . . . . Slashing 76 | . . . . . . . . . . . 3 17 56 Piercing 7 | . . . . . . . . . . . 7 . . Sneak Attacks 40 | . . . . . . 11 5 14 . . . 2 8 Combat Hostiles . | . . . . . . . . . . . . . . Follow-up Attacks 4 | . . . . . . . . . . . . 1 3 Damage Inflicted 6227 | . 23 14 . . . 1587 450 2122 . . 199 366 1466 Guns 139 | . . . . . . 88 . . . . . . 51 Cannons . | . . . . . . . . . . . . . . Explosions 439 | . . . . . . 254 . 185 . . . . . Melee 5578 | . . . . . . 1245 450 1924 . . 199 366 1394 Ramming 71 | . 23 14 . . . . . 13 . . . . 21 Kinetic 139 | . . . . . . 88 . . . . . . 51 Thermal 224 | . . . . . . 39 . 185 . . . . . Explosive 59 | . . . . . . 59 . . . . . . . Electromagnetic 156 | . . . . . . 156 . . . . . . . Impact 3619 | . . . . . . 1245 450 1924 . . . . . Slashing 1760 | . . . . . . . . . . . . 366 1394 Piercing 199 | . . . . . . . . . . . 199 . . Highest Corruption 27 | . . 4 4 4 . 12 . 14 . . . . 27 Average Corruption 8 | . . 4 4 4 . 11 . 5 . . . . 5 Corruption Purged . | . . . . . . . . . . . . . . Corruption Blocked . | . . . . . . . . . . . . . . Effects 44 | . . 2 7 5 . 22 . 3 . . . . 5 Message Errors 11 | . . . . 1 . 8 . 2 . . . . . Matter Fused 13 | . . 1 3 3 . 5 . . . . . . 1 Heat Flow Errors 4 | . . 1 1 . . 1 . . . . . . 1 Energy Discharges 5 | . . . 1 . . 2 . 1 . . . . 1 Data Loss (minor) 6 | . . . 1 1 . 4 . . . . . . . Data Loss (major) 3 | . . . 1 . . 1 . . . . . . 1 Alerts 1 | . . . . . . 1 . . . . . . . Weapon Failures 1 | . . . . . . . . . . . . . 1 Overload Shots . | . . . . . . . . . . . . . . Overflow Damage 2415 | . . . . . . 486 255 1362 . . . 21 291 Projectiles 10 | . . . . . . . . 10 . . . . . Explosions 191 | . . . . . . 4 . 187 . . . . . Melee 2214 | . . . . . . 482 255 1165 . . . 21 291 Knockbacks 15 | . . . . . . 1 1 13 . . . . . Impact 14 | . . . . . . 1 1 12 . . . . . Kinetic . | . . . . . . . . . . . . . . Secondary 1 | . . . . . . . . 1 . . . . . Self-Inflicted Damage 243 | . 10 5 . . . 122 . 97 . . . . 9 Shots 6 | . . . . . . 5 . 1 . . . . . Rammed 19 | . 7 6 . . . . . 1 . . . . 5 Targets Rammed 19 | . 7 6 . . . . . 1 . . . . 5 Kicked . | . . . . . . . . . . . . . . Crushed . | . . . . . . . . . . . . . . Highest Temperature 247 | . 10 235 191 . . 247 . . . . . . 130 Average Temperature 109 | . 10 122 103 . . 133 . . . . . . 63 Received Heat Transfer 570 | . 123 48 . 12 . 9 . 27 . . 81 . 270 Siege Activations . | . . . . . . . . . . . . . . Martial Activations . | . . . . . . . . . . . . . . Shielding Activations . | . . . . . . . . . . . . . . Robots Disrupted . | . . . . . . . . . . . . . . Combat Hostiles . | . . . . . . . . . . . . . . Robots Corrupted 17 | . . . . . . 1 3 13 . . . . . Combat Hostiles 1 | . . . . . . . . 1 . . . . . Parts Fried 39 | . . . . . . 10 6 23 . . . . . Impact Corruptions 61 | . . . . . . 13 8 40 . . . . . Robots Melted . | . . . . . . . . . . . . . . Combat Hostiles . | . . . . . . . . . . . . . . Parts Melted . | . . . . . . . . . . . . . . Heat Transferred 150 | . . . . . . 50 . 100 . . . . . Parts Sabotaged . | . . . . . . . . . . . . . . Parts Stolen . | . . . . . . . . . . . . . . Parts Stripped . | . . . . . . . . . . . . . . Power Chain Reactions 2 | . . . . . . 2 . . . . . . . Alert | -11 -10 -10 -10 -9 -8 -7 -6 -5 -4 -4 -3 -2 -1 ------- Run | Yrd Mat Min Exi Min Mat Fac Fac Fac Fac DSF Res Res Acc Maximum Alert Level 1 | . . . . . . 1 . 1 . . . . . Low Security (%) 96 | 100 100 100 . 100 100 85 100 94 100 100 100 100 100 Level 1 3 | . . . . . . 14 . 5 . . . . . Level 2 . | . . . . . . . . . . . . . . Level 3 . | . . . . . . . . . . . . . . Level 4 . | . . . . . . . . . . . . . . Level 5 . | . . . . . . . . . . . . . . High Security . | . . . . . . . . . . . . . . Max Security . | . . . . . . . . . . . . . . Peak Influence 240 | . 15 30 . 30 5 240 12 211 68 62 20 63 149 Initial 63 | . . . . . . . . 2 63 47 12 . 46 Average 34 | . 1 2 . 5 . 108 . 45 63 48 2 5 27 Influence Increases 1540 | . 24 60 . 30 5 356 39 421 5 15 37 111 437 Destroy 0b10 Robot/C 200 | . . . . . . 80 . 60 . . 20 20 20 Destroy 0b10 Robot/NC 245 | . . . . . . 70 25 95 . . . 10 45 Destroy Leader 38 | . . . . . . 14 . 24 . . . . . Successful Hack 31 | . 9 . . . 5 . 12 . 5 . . . . Disable Machine 225 | . . . . . . 180 . 15 . . 15 . 15 Anti-Garrison Action 150 | . . . . . . . . 150 . . . . . Destroy Structure 171 | . . . . . . 12 2 62 . . 2 21 72 Partial Spotted 30 | . 15 . . . . . . 15 . . . . . Lose Combat Pursuer 450 | . . 60 . 30 . . . . . 15 . 60 285 Influence Decreases 1487 | . 24 60 . 30 5 356 34 295 68 61 59 33 462 Entered New Map 134 | . . . . . . . . 3 68 21 10 . 32 Time Decay 1009 | . 24 40 . 30 5 336 34 202 . . 47 33 258 Lost Part 344 | . . 20 . . . 20 . 90 . 40 2 . 172 Squads Dispatched 18 | . 3 . . . . 1 . 6 . 1 1 . 6 Investigation 2 | . 2 . . . . . . . . . . . . Extermination 8 | . . . . . . 1 . 2 . . 1 . 4 Reinforcement 5 | . 1 . . . . . . 2 . 1 . . 1 Assault 2 | . . . . . . . . 2 . . . . . Garrison 1 | . . . . . . . . . . . . . 1 Intercept . | . . . . . . . . . . . . . . Searches Triggered . | . . . . . . . . . . . . . . Construction Impeded . | . . . . . . . . . . . . . . Haulers Reinforced . | . . . . . . . . . . . . . . Active Scanning Responses . | . . . . . . . . . . . . . . Cargo Convoy Interrupts . | . . . . . . . . . . . . . . Stealth | -11 -10 -10 -10 -9 -8 -7 -6 -5 -4 -4 -3 -2 -1 --------- Run | Yrd Mat Min Exi Min Mat Fac Fac Fac Fac DSF Res Res Acc Distress Signals 2 | . . . . . 1 . . . . . . 1 . Communications Jammed . | . . . . . . . . . . . . . . Distress Signals . | . . . . . . . . . . . . . . Times Spotted 103 | . 7 8 . 2 3 9 . 13 . 7 1 14 39 Peak Tracking Total 18 | . 5 4 . 2 3 4 . 6 . 6 1 9 18 Tactical Retreats 12 | . . 3 . 1 . . . . . 1 . 2 5 Traps | -11 -10 -10 -10 -9 -8 -7 -6 -5 -4 -4 -3 -2 -1 ------- Run | Yrd Mat Min Exi Min Mat Fac Fac Fac Fac DSF Res Res Acc Traps Triggered 5 | . . 1 . . . 1 1 . . . . 1 1 Indirectly . | . . . . . . . . . . . . . . Trap Hack Attempts . | . . . . . . . . . . . . . . Triggered . | . . . . . . . . . . . . . . Disarmed . | . . . . . . . . . . . . . . Reprogrammed . | . . . . . . . . . . . . . . Reused . | . . . . . . . . . . . . . . Traps Extracted . | . . . . . . . . . . . . . . Installed . | . . . . . . . . . . . . . . Triggered . | . . . . . . . . . . . . . . Objects Rigged 11 | . . . . . . 2 2 4 . . . . 3 Exploded 8 | . . . . . . 2 . 3 . . . 1 2 Machines | -11 -10 -10 -10 -9 -8 -7 -6 -5 -4 -4 -3 -2 -1 ---------- Run | Yrd Mat Min Exi Min Mat Fac Fac Fac Fac DSF Res Res Acc Machines Disabled 16 | . . . . . . 12 . 2 . . 1 . 1 Max in Single Turn 4 | . . . . . . 4 . 1 . . 1 . 1 Garrison Access 1 | . . . . . . . . 1 . . . . . Machines Repaired . | . . . . . . . . . . . . . . Machines Dismantled . | . . . . . . . . . . . . . . Machines Sabotaged . | . . . . . . . . . . . . . . Overloaded Fab Kills . | . . . . . . . . . . . . . . Hacking | -11 -10 -10 -10 -9 -8 -7 -6 -5 -4 -4 -3 -2 -1 --------- Run | Yrd Mat Min Exi Min Mat Fac Fac Fac Fac DSF Res Res Acc Machines Accessed 14 | . 2 1 1 . 1 1 3 2 1 . 1 1 . Terminals 8 | . 2 . . . 1 1 . 2 1 . . 1 . Fabricators 1 | . . . . . . . 1 . . . . . . Repair Stations . | . . . . . . . . . . . . . . Recycling Units 1 | . . . . . . . 1 . . . . . . Scanalyzers 2 | . . . . . . . 1 . . . 1 . . Garrison Access . | . . . . . . . . . . . . . . Total Hacks 37 | . 8 1 1 . 3 2 11 7 2 . 1 1 . Successful 13 | . 3 1 1 . 2 1 4 . 1 . . . . Failed 24 | . 5 . . . 1 1 7 7 1 . 1 1 . Catastrophic 5 | . . . . . . . 1 2 . . 1 1 . Database Lockouts . | . . . . . . . . . . . . . . Manual 24 | . 8 . 1 . 3 2 2 7 . . . 1 . Terminals 23 | . 8 . . . 3 2 . 7 2 . . 1 . Fabricators 2 | . . . . . . . 2 . . . . . . Repair Stations . | . . . . . . . . . . . . . . Recycling Units 5 | . . . . . . . 5 . . . . . . Scanalyzers 5 | . . . . . . . 4 . . . 1 . . Garrison Access . | . . . . . . . . . . . . . . Terminal Hacks 5 | . 1 1 1 . 1 . . . 1 . . . . Open Door 1 | . . 1 . . . . . . . . . . . Open DSF 1 | . . . . . . . . . 1 . . . . Terminal Index 2 | . 1 . . . 1 . . . . . . . . Proto ID Catalog 1 | . . . 1 . . . . . . . . . . Fabricator Hacks . | . . . . . . . . . . . . . . Repair Station Hacks . | . . . . . . . . . . . . . . Recycling Unit Hacks 2 | . . . . . . . 2 . . . . . . Report Inventory 1 | . . . . . . . 1 . . . . . . Retrieve Components 1 | . . . . . . . 1 . . . . . . Scanalyzer 1 | . . . . . . . 1 . . . . . . Retrieve Study 1 | . . . . . . . 1 . . . . . . Garrison Access Hacks . | . . . . . . . . . . . . . . Unauthorized Hacks 5 | . 2 . . . 1 1 1 . . . . . . Terminals 4 | . 2 . . . 1 1 . . . . . . . Botnet 4 | . 2 . . . 1 1 . . . . . . . Fabricators . | . . . . . . . . . . . . . . Repair Stations . | . . . . . . . . . . . . . . Recycling Units 1 | . . . . . . . 1 . . . . . . Recyclers 1 | . . . . . . . 1 . . . . . . Scanalyzers . | . . . . . . . . . . . . . . Garrison Access . | . . . . . . . . . . . . . . Data Cores Recovered 1 | . . . . . . . . . . . . . 1 Used . | . . . . . . . . . . . . . . Hacking Detections 10 | . 2 . . . 1 1 1 2 1 . 1 1 . Full Trace Events 2 | . 2 . . . . . . . . . . . . Feedback Events . | . . . . . . . . . . . . . . Feedback Blocked . | . . . . . . . . . . . . . . Robot Schematics Acquired . | . . . . . . . . . . . . . . Robots Built . | . . . . . . . . . . . . . . Authchips . | . . . . . . . . . . . . . . Time . | . . . . . . . . . . . . . . Total Robot Build Rating . | . . . . . . . . . . . . . . Part Schematics Acquired . | . . . . . . . . . . . . . . Parts Built . | . . . . . . . . . . . . . . Authchips . | . . . . . . . . . . . . . . Time . | . . . . . . . . . . . . . . Total Part Build Rating . | . . . . . . . . . . . . . . Part Studies Acquired 1 | . . . . . . . 1 . . . . . . Parts Repaired . | . . . . . . . . . . . . . . Time . | . . . . . . . . . . . . . . Parts Recycled . | . . . . . . . . . . . . . . Recycled Matter . | . . . . . . . . . . . . . . Retrieved Matter . | . . . . . . . . . . . . . . Retrieved Components 3 | . . . . . . . 3 . . . . . . Parts Scanalyzed . | . . . . . . . . . . . . . . Part Schematics Acquired . | . . . . . . . . . . . . . . Parts Damaged . | . . . . . . . . . . . . . . Bothacking | -11 -10 -10 -10 -9 -8 -7 -6 -5 -4 -4 -3 -2 -1 ------------ Run | Yrd Mat Min Exi Min Mat Fac Fac Fac Fac DSF Res Res Acc Used RIF Installer . | . . . . . . . . . . . . . . Robots Hacked 1 | . . . . . . . . 1 . . . . . Non-combat 1 | . . . . . . . . 1 . . . . . Combat . | . . . . . . . . . . . . . . Robot Hacks Applied 1 | . . . . . . . . 1 . . . . . find_chute 1 | . . . . . . . . 1 . . . . . Relay Couplers Released 2 | . . . . . . . . 2 . . . . . Machine Destruction 2 | . . . . . . . . 2 . . . . . Fabnet Peak Effective % . | . . . . . . . . . . . . . . Robots Rewired . | . . . . . . . . . . . . . . Allies Hacked . | . . . . . . . . . . . . . . Hacks Repelled . | . . . . . . . . . . . . . . Allies | -11 -10 -10 -10 -9 -8 -7 -6 -5 -4 -4 -3 -2 -1 -------- Run | Yrd Mat Min Exi Min Mat Fac Fac Fac Fac DSF Res Res Acc Total Allies . | . . . . . . . . . . . . . . Largest Group . | . . . . . . . . . . . . . . Highest-Rated Group . | . . . . . . . . . . . . . . Highest-Rated Ally . | . . . . . . . . . . . . . . Total Orders . | . . . . . . . . . . . . . . Ally Attacks . | . . . . . . . . . . . . . . Total Damage . | . . . . . . . . . . . . . . Kills . | . . . . . . . . . . . . . . Allies Corrupted . | . . . . . . . . . . . . . . Allies Melted . | . . . . . . . . . . . . . . Intel | -11 -10 -10 -10 -9 -8 -7 -6 -5 -4 -4 -3 -2 -1 ------- Run | Yrd Mat Min Exi Min Mat Fac Fac Fac Fac DSF Res Res Acc Active Infowar (turns) 2199 | . . 100 233 3 . 475 317 758 . . 1 . 312 Optics 336 | . . 100 233 3 . . . . . . . . . Terrain 741 | . . . . . . . . 740 . . 1 . . Structural 1104 | . . . . . . 475 317 . . . . . 312 Jamming 645 | . . . . . . . . 645 . . . . . Robot Analysis Total . | . . . . . . . . . . . . . . Derelict Logs Recovered . | . . . . . . . . . . . . . . Drone Launches . | . . . . . . . . . . . . . . Drone Recoveries . | . . . . . . . . . . . . . . Exploration | -11 -10 -10 -10 -9 -8 -7 -6 -5 -4 -4 -3 -2 -1 ------------- Run | Yrd Mat Min Exi Min Mat Fac Fac Fac Fac DSF Res Res Acc Turns Passed 5197 | 34 209 402 233 206 145 776 397 1184 11 71 402 215 912 Spaces Moved 4734 | 33 143 368 228 277 190 575 398 778 21 102 309 237 1075 Core 733 | 3 . 17 228 116 . 174 . 51 21 6 25 2 90 Treads . | . . . . . . . . . . . . . . Legs 315 | . . . . . . . . . . . 233 82 . Wheels 2187 | 30 143 351 . 161 5 372 398 727 . . . . . Hover 361 | . . . . . 185 29 . . . 96 51 . . Flight 1138 | . . . . . . . . . . . . 153 985 Fastest Speed 28 | 50 90 90 100 50 50 50 85 50 50 28 40 34 34 Average Speed 72 | 86 90 90 100 73 51 71 85 82 50 40 108 66 46 Slowest Speed 200 | 90 90 100 100 100 90 100 85 115 50 200 150 200 200 Overloaded Moves . | . . . . . . . . . . . . . . Propulsion Burnouts . | . . . . . . . . . . . . . . Robots Hopped 3 | . . . . . . . . . . . . 2 1 Potential Cave-ins 1 | . . . . . . . . . . . . . 1 Cave-ins Triggered . | . . . . . . . . . . . . . . Exploration Rate (%) 31 | 3 29 77 65 59 16 14 10 23 1 91 8 9 29 Regions Visited 13 Branch Regions 3 Pre-discovered Areas . | . . . . . . . . . . . . . . Known Exits Taken 3 | . . . . . . . . . 1 . 1 1 . Unknown Exits Taken 9 | 1 1 1 1 1 1 1 1 1 . . . . . Scrap Searched 1 | . . . . 1 . . . . . . . . . Spaces Dug 44 | . . . . . . 2 2 8 . . 1 7 24 Terrain Destroyed 95 | . . . . . . 12 2 48 . . 1 7 25 Melee 44 | . . . . . . 2 2 8 . . 1 7 24 Projectile 1 | . . . . . . . . . . . . . 1 AOE 50 | . . . . . . 10 . 40 . . . . . Terrain Rammed . | . . . . . . . . . . . . . . Walls Destroyed . | . . . . . . . . . . . . . . Machines Disabled . | . . . . . . . . . . . . . . Actions | -11 -10 -10 -10 -9 -8 -7 -6 -5 -4 -4 -3 -2 -1 --------- Run | Yrd Mat Min Exi Min Mat Fac Fac Fac Fac DSF Res Res Acc Total 6237 | 36 223 435 233 279 236 896 442 1265 20 127 357 278 1410 Wait 1160 | . 64 59 . . 38 255 22 413 . 8 20 19 262 Move 4717 | 32 142 367 227 276 189 574 397 778 20 102 308 232 1073 Hop 3 | . . . . . . . . . . . . 2 1 Pick Up 35 | . 4 2 4 . 2 6 5 6 . 2 3 . 1 Fast Attach 75 | 4 1 1 . 1 4 12 6 8 . 12 10 7 9 Attach 18 | . 2 . . . 1 3 1 7 . . . . 4 Detach 9 | . . . . . . 3 1 3 . . 1 . 1 Swap 1 | . 1 . . . . . . . . . . . . Drop 48 | . 2 . 2 2 2 13 1 11 . 3 6 5 1 Fire 11 | . . . . . . 6 . 1 . . . . 4 Melee 131 | . . . . . . 22 7 34 . . 9 13 46 Ram 18 | . 7 6 . . . . . . . . . . 5 Kick . | . . . . . . . . . . . . . . Crush . | . . . . . . . . . . . . . . Escape Stasis . | . . . . . . . . . . . . . . Rewire . | . . . . . . . . . . . . . . Trap 11 | . . . . . . 2 2 4 . . . . 3 Miscellaneous . | . . . . . . . . . . . . . . Route ------- -11/Scrapyard -10/Materials -10/Mines (discovered 2 exits: [*Mat] / *Exi) -10/Exiles (discovered 2 exits: [*Min x2]) -9/Mines -8/Materials -7/Factory -6/Factory (discovered 2 exits: *Fac / [*Low]) -5/Factory -4/Factory -4/DSF -3/Research -2/Research -1/Access History --------- Turn | Location | Event 18 | -11/Scrapyard | Discovered new exit (range 15) 35 | -11/Scrapyard | Entered Materials 220 | -10/Materials | Discovered new exit (range 14) 244 | -10/Materials | Entered Mines 277 | -10/Mines | Discovered new exit (range 6) 309 | -10/Mines | Build established: Mutant 358 | -10/Mines | Found a damaged Exp. Sensor Array with a note attached 360 | -10/Mines | Found Prototype Device 537 | -10/Mines | Met a Derelict who couldn't figure out how to use a Trap Extractor 629 | -10/Mines | Core integrity fell below 50% 641 | -10/Mines | Deemed a non-threat by the Exiles lab entrance 642 | -10/Mines | Discovered new exit (range 5) 643 | -10/Mines | Core integrity fell below 20% 646 | -10/Mines | Entered Exiles 658 | -10/Exiles | Lost 3 parts (1p2n) 659 | -10/Exiles | Discovered new exit (range 18) 688 | -10/Exiles | Met 8R-AWN 703 | -10/Exiles | Met EX-HEX 730 | -10/Exiles | Met EX-BIN 745 | -10/Exiles | Aligned with FarCom system 746 | -10/Exiles | Given EX-Vault access code 770 | -10/Exiles | Opened EX-Vault 782 | -10/Exiles | Found PSU Rigger 804 | -10/Exiles | Warned to stay clear of 0b10 Research branches 829 | -10/Exiles | Met EX-DEC 869 | -10/Exiles | Discovered new exit (range 12) 879 | -10/Exiles | Left Exiles lab with PSU Rigger 879 | -10/Exiles | Entered Mines 882 | -9/Mines | Released all parts (2) 1078 | -9/Mines | Discovered new exit (range 6) 1085 | -9/Mines | Entered Materials 1085 | -8/Materials | Evolved 4 slots: Propulsion x2, Utility x2 1202 | -8/Materials | Discovered new exit (range 14) 1230 | -8/Materials | Entered Factory 1230 | -7/Factory | Evolved 2 slots: Utility x2 1308 | -7/Factory | System corruption reached 10% 1826 | -7/Factory | Build established: Scavenger-Mutant 1993 | -7/Factory | Discovered new exit (range 15) 2006 | -7/Factory | Entered another Factory area 2006 | -6/Factory | Evolved 2 slots: Utility x2 2319 | -6/Factory | Discovered new exit (range 15) 2371 | -6/Factory | Discovered new exit (range 16) 2403 | -6/Factory | Entered another Factory area 2403 | -5/Factory | Evolved 2 slots: Utility x2 2890 | -5/Factory | Build established: Hacker-Assassin 3179 | -5/Factory | Lost 3 parts (1p2n) 3551 | -5/Factory | System corruption reached 10% 3561 | -5/Factory | Released all parts (10) 3580 | -5/Factory | Discovered new exit (range 12) 3586 | -5/Factory | Core integrity fell below 50% 3587 | -5/Factory | Entered another Factory area 3587 | -4/Factory | Evolved 2 slots: Propulsion x2 3591 | -4/Factory | Lost 7 parts (1p3n2u1w) 3597 | -4/Factory | Identified exit to DSF 3598 | -4/Factory | Entered DSF 3641 | -4/DSF | Additional patrols routed to DSF 3664 | -4/DSF | Discovered new exit (range 14) 3669 | -4/DSF | Entered Research 3669 | -3/Research | Evolved 2 slots: Utility x2 3700 | -3/Research | Lost 4 parts (1p3n) 3761 | -3/Research | Lost 3 parts (2n1u) 3953 | -3/Research | Discovered new exit (range 5) 4069 | -3/Research | Identified exit to Research 4071 | -3/Research | Entered another Research area 4071 | -2/Research | Evolved 2 slots: Utility x2 4125 | -2/Research | Build established: Assassin 4229 | -2/Research | Spotted B-90 Cyclops 4285 | -2/Research | Discovered new exit (range 3) 4286 | -2/Research | Identified exit to Access 4286 | -2/Research | Entered Access 4286 | -1/Access | Evolved 2 slots: Propulsion x2 4669 | -1/Access | Garrison activated, responded to threat 5026 | -1/Access | Build established: Hacker-Gladiator 5114 | -1/Access | Lost 3 parts (1p1u1w) 5188 | -1/Access | Core integrity fell below 50% 5190 | -1/Access | System corruption reached 10% 5195 | -1/Access | Core integrity fell below 20% 5198 | -1/Access | Destroyed by G-73 Enforcer with Heavy Laser Last Messages --------------- 05190_ Imp. System Shield destroyed. 05190_ Imp. Hacking Suite destroyed. 05190_ Core Analyzer destroyed. 05190_ System corrupted by crushing effect (+2). 05190_ System corrupted by crushing effect (+4). 05190_ System corrupted by crushing effect (+1). 05190_ System corrupted by crushing effect (+3). 05190_ Critical hit (Burn: +37). 05190_ Acquired Hvy. Machine Gun. 05191_ U-05 Engineer builds a Wall. 05192_ System corrupted: Hvy. Machine Gun jammed. 05192_ P-80 Master resets G-73 Enforcer, system corruption cleaned. 05193_ Hvy. Machine Gun destroyed. 05194_ Slammed into G-73 Enforcer. 05195_ U-05 Engineer builds a Wall. 05195_ Critical hit (Burn: +37). 05195_ Slammed into P-80 Master. 05196_ Slammed into G-73 Enforcer. Map ----- +----------------------------------------------------+ | ?????? ???? + ##??? | | ?????? ??? ### ##??? | | ??????? "??? ### ########??? | | ??????? ""?????## ########### | | ??????? "?????## ########### | | ???????? ?????## ## # | | ?????? ### ## # | | ??????###/####### ## " # | | ??????## # """ # | | ??????## + """ # | | ?????? # # " # | | ?????? # #########o# # | | ?????? # ######### # # | | ?????? # ######### # = # | | "" "" # #########+########## | | / " ## | | # # ## | | # # ## | | # # ## | | ? # # g ## | | ? # # ""T"" g! ## | | ?? # #! """"" * ## | | ####??## ##############g##### | | ####??## ############## | ### | | ?????? # # gsp%#?? | | ?????? # # b@*g##? | | ?????? # #! p;gg #? | | ?????? # # """"" ; g ##? | | ?????? # ???"""" # ; #?? | | ?????? # ????"""" u#=; #?? | | ???????????????"""" #=# #?? | | ???????????????"""" #=###?? | | ????????????????""" # ##??? | | ???????????????? # ##??? | | ??????????????? # ##??? | | ?????????????? # ##??? | | ?????????????###+######## ##??? | | ?????????? ##### ######## ##??? | | ?????????? ##### ######## ##??? | | ?????????? ##??? | | ????????????????## ##??? | | ????????????????## ##??? | | ???????????????? # ###?? | | ???????????????? # ###?? | | ???????????????? + ##?? | | ???????????????? # ##?? | | ???????????????? ######### ##?? | | ???????????????? # [ ### ##?? | | ???????????????? # ### ##?? | | ???????????????? # ### #### | +----------------------------------------------------+ Best States ------------- Heat Dissipation 52 Energy Generation 19 Energy Capacity 315 Matter Stores 450 Matter Capacity 450 Sight Range 20 Terrain Scan Range 20 Terrain Scan Density 10 Jamming Range 12 Additional Mass Support 9 Armor Coverage 150 Melee Speed Boost 30 Evasion (%) 63 Melee Accuracy 36 Core Analysis 9 Offensive Hacking 24 Defensive Hacking 24 Authchip Count 2 Item Schematics ----------------- None Robot Schematics ------------------ None Fabricated ------------ Nothing Repaired ---------- Nothing Studied --------- Hvy. Hammer | -6/Factory | Hacked Alien Tech Used ----------------- None Achievements -------------- Batter Up Streaker Challenges ------------ None Game ------ Seed GrenadeScanSaw Manual? 0 Play Time 00:48:35 Cumulative 22.8 hours Start 2025.11.01 @ 17:55:27 End 2025.11.01 @ 18:43:00 Sessions 1 Manual Loads 0 Difficulty Rogue Special Mode None Game No. 42 Rogue 42 Adventurer 0 Explorer 0 Win Type - Total 2 Types 2/0/0/0/0/0/0/0/0/0 Lore% 36 Gallery% 28 Achievement% 26 Wizard Run 0 Options --------- Layout 1 ASCII 0 Keyboard 1 Movement Arrows Keybinds 0 Fullscreen 1 Font 16/SmallcapsGlow Map View 50x54 Zoom Use 1% Tactical HUD 1 Map Filters NONE Filters NONE Steam 1 RUN: bea15f26-1b32-4fb9-83fe-3b73e6b20233